[Event "Titled Tuesday Blitz June 28 Late 2022"]
[White "Kuzmin, Roman"]
[Black "Domingo Nunez, Ruben"]
[WhiteFideId "44134932"]
[BlackFideId "22245570"]
[WhiteElo "1968"]
[BlackElo "2376"]
[Result "0-1"]
[Round "03"]
[TimeControl "180+1"]
[Date "2022.06.29"]
[WhiteClock "0:00:03"]
[BlackClock "0:00:10"]

1. e4 {[%clk 0:03:00]}  Nc6 {[%clk 0:02:58]} 2. d4 {[%clk 0:02:59]}  d5 {[%clk 0:02:57]} 3. e5 {[%clk 0:02:59]}  Bf5 {[%clk 0:02:56]} 4. Nf3 {[%clk 0:02:55]}  e6 {[%clk 0:02:53]} 5. Bd3 {[%clk 0:02:52]}  Bxd3 {[%clk 0:02:36]} 6. Qxd3 {[%clk 0:02:53]}  Qd7 {[%clk 0:02:36]} 7. c3 {[%clk 0:02:51]}  f6 {[%clk 0:02:34]} 8. Bf4 {[%clk 0:02:49]}  Nge7 {[%clk 0:02:33]} 9. h4 {[%clk 0:02:41]}  O-O-O {[%clk 0:02:31]} 10. Bg3 {[%clk 0:02:22]}  Nf5 {[%clk 0:02:31]} 11. Bh2 {[%clk 0:02:20]}  h5 {[%clk 0:02:28]} 12. Nbd2 {[%clk 0:02:20]}  Be7 {[%clk 0:02:14]} 13. a4 {[%clk 0:02:17]}  fxe5 {[%clk 0:02:14]} 14. Nxe5 {[%clk 0:02:02]}  Nxe5 {[%clk 0:02:14]} 15. Bxe5 {[%clk 0:02:03]}  Bxh4 {[%clk 0:02:10]} 16. b4 {[%clk 0:01:52]}  Bf6 {[%clk 0:01:54]} 17. Nf3 {[%clk 0:01:47]}  Nd6 {[%clk 0:01:54]} 18. Bxd6 {[%clk 0:01:27]}  Qxd6 {[%clk 0:01:52]} 19. Kd2 {[%clk 0:01:28]}  Qf4+ {[%clk 0:01:32]} 20. Qe3 {[%clk 0:01:20]}  Qxe3+ {[%clk 0:01:33]} 21. Kxe3 {[%clk 0:01:21]}  Rde8 {[%clk 0:01:33]} 22. Rae1 {[%clk 0:01:15]}  e5 {[%clk 0:01:28]} 23. dxe5 {[%clk 0:01:15]}  Bxe5 {[%clk 0:01:29]} 24. Kd3 {[%clk 0:01:15]}  Bf6 {[%clk 0:01:21]} 25. Rxe8+ {[%clk 0:01:13]}  Rxe8 {[%clk 0:01:22]} 26. Rxh5 {[%clk 0:01:12]}  c6 {[%clk 0:01:23]} 27. g4 {[%clk 0:01:09]}  Kd7 {[%clk 0:01:09]} 28. g5 {[%clk 0:01:03]}  Bd8 {[%clk 0:01:09]} 29. Rh7 {[%clk 0:01:00]}  Re7 {[%clk 0:01:10]} 30. Nd4 {[%clk 0:00:51]}  g6 {[%clk 0:00:58]} 31. Rxe7+ {[%clk 0:00:43]}  Bxe7 {[%clk 0:00:59]} 32. f4 {[%clk 0:00:42]}  Bd8 {[%clk 0:00:44]} 33. Nf3 {[%clk 0:00:40]}  Ke6 {[%clk 0:00:43]} 34. Nh4 {[%clk 0:00:40]}  Kf7 {[%clk 0:00:41]} 35. Kd4 {[%clk 0:00:40]}  Bc7 {[%clk 0:00:39]} 36. f5 {[%clk 0:00:20]}  gxf5 {[%clk 0:00:38]} 37. Nxf5 {[%clk 0:00:21]}  Kg6 {[%clk 0:00:38]} 38. Ne7+ {[%clk 0:00:20]}  Kxg5 {[%clk 0:00:38]} 39. Nc8 {[%clk 0:00:21]}  Kf6 {[%clk 0:00:21]} 40. Kc5 {[%clk 0:00:17]}  Bg3 {[%clk 0:00:20]} 41. b5 {[%clk 0:00:12]}  Bf2+ {[%clk 0:00:15]} 42. Kd6 {[%clk 0:00:12]}  cxb5 {[%clk 0:00:13]} 43. axb5 {[%clk 0:00:13]}  d4 {[%clk 0:00:13]} 44. cxd4 {[%clk 0:00:12]}  Bxd4 {[%clk 0:00:14]} 45. Kc7 {[%clk 0:00:10]}  a6 {[%clk 0:00:13]} 46. Kxb7 {[%clk 0:00:05]}  axb5 {[%clk 0:00:11]} 47. Nd6 {[%clk 0:00:04]}  b4 {[%clk 0:00:12]} 48. Kc6 {[%clk 0:00:04]}  Ke5 {[%clk 0:00:11]} 49. Nc4+ {[%clk 0:00:03]}  Ke4 {[%clk 0:00:11]} 50. Kb5 {[%clk 0:00:03]}  Bc3 {[%clk 0:00:11]} 51. Ka4 {[%clk 0:00:03]}  Bd4 {[%clk 0:00:11]} 52. Kb3 {[%clk 0:00:03]}  Bc3 {[%clk 0:00:12]} 53. Na5 {[%clk 0:00:03]}  Kd5 {[%clk 0:00:10]} 0-1


[Site "https://www.chess.com"]

[Event "Titled Tuesday Blitz June 28 Late 2022"]
[White "Ladopoulos, Dimitrios"]
[Black "Mickiewicz, Piotr"]
[WhiteFideId "4239580"]
[BlackFideId "1114891"]
[WhiteElo "2697"]
[BlackElo "2482"]
[Result "1/2-1/2"]
[Round "03"]
[TimeControl "180+1"]
[Date "2022.06.29"]
[WhiteClock "0:00:12"]
[BlackClock "0:00:18"]

1. Nf3 {[%clk 0:02:56]}  d5 {[%clk 0:02:58]} 2. c4 {[%clk 0:02:56]}  c6 {[%clk 0:02:54]} 3. d4 {[%clk 0:02:56]}  Nf6 {[%clk 0:02:53]} 4. e3 {[%clk 0:02:56]}  e6 {[%clk 0:02:53]} 5. Nc3 {[%clk 0:02:57]}  Nbd7 {[%clk 0:02:53]} 6. Qc2 {[%clk 0:02:57]}  Bd6 {[%clk 0:02:51]} 7. b3 {[%clk 0:02:57]}  Qe7 {[%clk 0:02:50]} 8. Bb2 {[%clk 0:02:57]}  O-O {[%clk 0:02:49]} 9. Bd3 {[%clk 0:02:41]}  dxc4 {[%clk 0:02:48]} 10. bxc4 {[%clk 0:02:39]}  e5 {[%clk 0:02:47]} 11. Bf5 {[%clk 0:02:34]}  exd4 {[%clk 0:02:43]} 12. Nxd4 {[%clk 0:02:35]}  g6 {[%clk 0:02:36]} 13. Bh3 {[%clk 0:02:34]}  Nc5 {[%clk 0:02:35]} 14. Bxc8 {[%clk 0:02:34]}  Raxc8 {[%clk 0:02:32]} 15. O-O {[%clk 0:02:34]}  Rfe8 {[%clk 0:02:29]} 16. Rad1 {[%clk 0:02:29]}  Rcd8 {[%clk 0:02:13]} 17. Nf3 {[%clk 0:02:26]}  Qe6 {[%clk 0:01:40]} 18. Ne2 {[%clk 0:02:18]}  Nfe4 {[%clk 0:01:39]} 19. Ba1 {[%clk 0:01:57]}  Bf8 {[%clk 0:01:25]} 20. Nf4 {[%clk 0:01:48]}  Qf5 {[%clk 0:01:21]} 21. Qb2 {[%clk 0:01:43]}  f6 {[%clk 0:01:20]} 22. h3 {[%clk 0:01:41]}  Bg7 {[%clk 0:01:19]} 23. Qa3 {[%clk 0:01:37]}  a6 {[%clk 0:01:16]} 24. Qa5 {[%clk 0:01:36]}  Qc8 {[%clk 0:01:09]} 25. Bd4 {[%clk 0:01:31]}  Ne6 {[%clk 0:01:05]} 26. Nxe6 {[%clk 0:01:06]}  Qxe6 {[%clk 0:01:06]} 27. Qb6 {[%clk 0:01:04]}  Rd7 {[%clk 0:01:05]} 28. Qb3 {[%clk 0:01:03]}  c5 {[%clk 0:01:03]} 29. Bb2 {[%clk 0:01:02]}  Red8 {[%clk 0:01:03]} 30. Rxd7 {[%clk 0:01:00]}  Qxd7 {[%clk 0:01:02]} 31. Qc2 {[%clk 0:00:58]}  Qd3 {[%clk 0:00:57]} 32. Qa4 {[%clk 0:00:52]}  g5 {[%clk 0:00:29]} 33. Qa5 {[%clk 0:00:34]}  Rd7 {[%clk 0:00:29]} 34. Qa4 {[%clk 0:00:31]}  h5 {[%clk 0:00:23]} 35. Nd4 {[%clk 0:00:14]}  Rf7 {[%clk 0:00:19]} 36. Qe8+ {[%clk 0:00:11]}  Bf8 {[%clk 0:00:19]} 37. Ne6 {[%clk 0:00:09]}  Qd7 {[%clk 0:00:20]} 38. Qxd7 {[%clk 0:00:07]}  Rxd7 {[%clk 0:00:20]} 39. f3 {[%clk 0:00:07]}  Nd2 {[%clk 0:00:15]} 40. Rc1 {[%clk 0:00:07]}  Kf7 {[%clk 0:00:15]} 41. Nxf8 {[%clk 0:00:07]}  Kxf8 {[%clk 0:00:15]} 42. Bxf6 {[%clk 0:00:07]}  g4 {[%clk 0:00:16]} 43. hxg4 {[%clk 0:00:08]}  hxg4 {[%clk 0:00:17]} 44. fxg4 {[%clk 0:00:08]}  Kf7 {[%clk 0:00:17]} 45. g5 {[%clk 0:00:09]}  Ke6 {[%clk 0:00:17]} 46. Kf2 {[%clk 0:00:08]}  Ne4+ {[%clk 0:00:17]} 47. Kf3 {[%clk 0:00:09]}  Nxf6 {[%clk 0:00:18]} 48. gxf6 {[%clk 0:00:10]}  Kxf6 {[%clk 0:00:19]} 49. Rc2 {[%clk 0:00:10]}  Ke5 {[%clk 0:00:18]} 50. g4 {[%clk 0:00:09]}  Rf7+ {[%clk 0:00:18]} 51. Kg3 {[%clk 0:00:09]}  Ke4 {[%clk 0:00:19]} 52. g5 {[%clk 0:00:10]}  Kxe3 {[%clk 0:00:18]} 53. Kg4 {[%clk 0:00:10]}  Kd3 {[%clk 0:00:18]} 54. Rc1 {[%clk 0:00:10]}  Rc7 {[%clk 0:00:16]} 55. g6 {[%clk 0:00:10]}  b5 {[%clk 0:00:16]} 56. cxb5 {[%clk 0:00:11]}  axb5 {[%clk 0:00:16]} 57. Kf5 {[%clk 0:00:11]}  c4 {[%clk 0:00:16]} 58. Kf6 {[%clk 0:00:11]}  c3 {[%clk 0:00:17]} 59. g7 {[%clk 0:00:12]}  Rxg7 {[%clk 0:00:17]} 60. Kxg7 {[%clk 0:00:13]}  Kd2 {[%clk 0:00:17]} 61. Rh1 {[%clk 0:00:12]}  c2 {[%clk 0:00:18]} 62. Kf6 {[%clk 0:00:12]}  c1=Q {[%clk 0:00:18]} 63. Rxc1 {[%clk 0:00:11]}  Kxc1 {[%clk 0:00:18]} 64. Ke5 {[%clk 0:00:12]}  Kb2 {[%clk 0:00:18]} 65. Kd4 {[%clk 0:00:11]}  Kxa2 {[%clk 0:00:17]} 66. Kc5 {[%clk 0:00:11]}  b4 {[%clk 0:00:18]} 67. Kxb4 {[%clk 0:00:12]} 1/2-1/2


[Site "https://www.chess.com"]

[Event "Titled Tuesday Blitz June 28 Late 2022"]
[White "Laurusas, Tomas"]
[Black "Vivas Zamora, Fabian Ernesto"]
[WhiteFideId "12803731"]
[BlackFideId "3902480"]
[WhiteElo "2442"]
[BlackElo "2014"]
[Result "1-0"]
[Round "03"]
[TimeControl "180+1"]
[Date "2022.06.28"]
[WhiteClock "0:00:27"]
[BlackClock "0:00:01"]

1. d4 {[%clk 0:03:00]}  Nf6 {[%clk 0:02:59]} 2. c4 {[%clk 0:02:57]}  g6 {[%clk 0:02:58]} 3. Nc3 {[%clk 0:02:57]}  d5 {[%clk 0:02:56]} 4. Bf4 {[%clk 0:02:57]}  Bg7 {[%clk 0:02:56]} 5. e3 {[%clk 0:02:57]}  O-O {[%clk 0:02:49]} 6. Rc1 {[%clk 0:02:38]}  Nh5 {[%clk 0:01:53]} 7. Nxd5 {[%clk 0:02:05]}  c6 {[%clk 0:01:45]} 8. Bc7 {[%clk 0:02:03]}  Qd7 {[%clk 0:01:38]} 9. Bxb8 {[%clk 0:02:03]}  Rxb8 {[%clk 0:01:04]} 10. Nc3 {[%clk 0:02:02]}  b5 {[%clk 0:00:54]} 11. cxb5 {[%clk 0:01:51]}  cxb5 {[%clk 0:00:55]} 12. Be2 {[%clk 0:01:48]}  b4 {[%clk 0:00:46]} 13. Na4 {[%clk 0:01:45]}  e5 {[%clk 0:00:22]} 14. Nc5 {[%clk 0:01:21]}  Qd5 {[%clk 0:00:18]} 15. Nf3 {[%clk 0:01:09]}  exd4 {[%clk 0:00:15]} 16. O-O {[%clk 0:01:09]}  Qxa2 {[%clk 0:00:13]} 17. Nxd4 {[%clk 0:01:08]}  Qxb2 {[%clk 0:00:12]} 18. Bxh5 {[%clk 0:00:59]}  gxh5 {[%clk 0:00:12]} 19. Qxh5 {[%clk 0:00:53]}  Bxd4 {[%clk 0:00:12]} 20. exd4 {[%clk 0:00:50]}  Qxd4 {[%clk 0:00:13]} 21. Rfd1 {[%clk 0:00:48]}  Qg4 {[%clk 0:00:13]} 22. Qe5 {[%clk 0:00:46]}  Rb6 {[%clk 0:00:07]} 23. Rd3 {[%clk 0:00:43]}  Rg6 {[%clk 0:00:05]} 24. Rg3 {[%clk 0:00:41]}  Qf5 {[%clk 0:00:04]} 25. Qd4 {[%clk 0:00:37]}  a5 {[%clk 0:00:03]} 26. Ne4 {[%clk 0:00:35]}  Re8 {[%clk 0:00:01]} 27. Nf6+ {[%clk 0:00:34]}  Kf8 {[%clk 0:00:01]} 28. Qd6+ {[%clk 0:00:27]}  Kg7 {[%clk 0:00:01]} 29. Nxe8+ {[%clk 0:00:27]} 1-0


[Site "https://www.chess.com"]

[Event "Titled Tuesday Blitz June 28 Late 2022"]
[White "Leiva, Gianmarco"]
[Black "Van Foreest, Jorden"]
[WhiteFideId "3804399"]
[BlackFideId "1039784"]
[WhiteElo "2323"]
[BlackElo "2609"]
[Result "0-1"]
[Round "03"]
[TimeControl "180+1"]
[Date "2022.06.28"]
[WhiteClock "0:00:32"]
[BlackClock "0:01:38"]

1. e4 {[%clk 0:02:59]}  g6 {[%clk 0:03:00]} 2. d4 {[%clk 0:02:59]}  Bg7 {[%clk 0:03:01]} 3. Nc3 {[%clk 0:02:58]}  d5 {[%clk 0:03:01]} 4. Nxd5 {[%clk 0:02:40]}  c6 {[%clk 0:03:00]} 5. Nc3 {[%clk 0:02:38]}  Qxd4 {[%clk 0:03:00]} 6. Qxd4 {[%clk 0:02:36]}  Bxd4 {[%clk 0:03:01]} 7. Nge2 {[%clk 0:02:30]}  Bg7 {[%clk 0:03:01]} 8. Be3 {[%clk 0:02:27]}  Nf6 {[%clk 0:02:58]} 9. f3 {[%clk 0:02:27]}  O-O {[%clk 0:02:55]} 10. O-O-O {[%clk 0:02:26]}  b6 {[%clk 0:02:51]} 11. g4 {[%clk 0:02:17]}  Nbd7 {[%clk 0:02:44]} 12. Ng3 {[%clk 0:02:15]}  Nc5 {[%clk 0:02:31]} 13. h4 {[%clk 0:02:04]}  Nfd7 {[%clk 0:02:28]} 14. h5 {[%clk 0:01:55]}  Ne5 {[%clk 0:02:17]} 15. Be2 {[%clk 0:01:48]}  Be6 {[%clk 0:02:17]} 16. f4 {[%clk 0:01:34]}  Nxg4 {[%clk 0:01:42]} 17. Bxc5 {[%clk 0:01:34]}  bxc5 {[%clk 0:01:43]} 18. f5 {[%clk 0:01:34]}  Nf2 {[%clk 0:01:43]} 19. fxe6 {[%clk 0:01:33]}  Nxh1 {[%clk 0:01:44]} 20. Rxh1 {[%clk 0:01:30]}  Be5 {[%clk 0:01:43]} 21. Nf1 {[%clk 0:01:20]}  fxe6 {[%clk 0:01:41]} 22. Ne3 {[%clk 0:00:58]}  Bf4 {[%clk 0:01:39]} 23. Rh3 {[%clk 0:00:51]}  Rad8 {[%clk 0:01:40]} 24. Bg4 {[%clk 0:00:39]}  Kg7 {[%clk 0:01:39]} 25. Bxe6 {[%clk 0:00:32]}  Bxe3+ {[%clk 0:01:38]} 0-1


[Site "https://www.chess.com"]

[Event "Titled Tuesday Blitz June 28 Late 2022"]
[White "Leve, Nitai"]
[Black "Deac, Bogdan-Daniel"]
[WhiteFideId "2006898"]
[BlackFideId "1226380"]
[WhiteElo "2144"]
[BlackElo "2648"]
[Result "0-1"]
[Round "03"]
[TimeControl "180+1"]
[Date "2022.06.28"]
[WhiteClock "0:00:01"]
[BlackClock "0:00:18"]

1. e4 {[%clk 0:03:00]}  c5 {[%clk 0:02:56]} 2. Nf3 {[%clk 0:02:57]}  d6 {[%clk 0:02:56]} 3. d4 {[%clk 0:02:57]}  cxd4 {[%clk 0:02:57]} 4. Qxd4 {[%clk 0:02:57]}  Nf6 {[%clk 0:02:57]} 5. Bg5 {[%clk 0:02:56]}  Nc6 {[%clk 0:02:54]} 6. Bb5 {[%clk 0:02:56]}  Qa5+ {[%clk 0:02:52]} 7. Nc3 {[%clk 0:02:55]}  Qxb5 {[%clk 0:02:52]} 8. Nxb5 {[%clk 0:02:53]}  Nxd4 {[%clk 0:02:52]} 9. Nfxd4 {[%clk 0:02:47]}  Nxe4 {[%clk 0:02:52]} 10. Nc7+ {[%clk 0:02:46]}  Kd8 {[%clk 0:02:50]} 11. Nxa8 {[%clk 0:02:46]}  Nxg5 {[%clk 0:02:50]} 12. Nb5 {[%clk 0:02:42]}  a6 {[%clk 0:02:50]} 13. Nc3 {[%clk 0:02:37]}  Bd7 {[%clk 0:02:47]} 14. Nb6 {[%clk 0:02:34]}  Bc6 {[%clk 0:02:47]} 15. f3 {[%clk 0:02:33]}  g6 {[%clk 0:02:39]} 16. O-O-O {[%clk 0:02:16]}  Bg7 {[%clk 0:02:33]} 17. Ncd5 {[%clk 0:02:11]}  Ne6 {[%clk 0:02:22]} 18. c3 {[%clk 0:02:02]}  Re8 {[%clk 0:02:03]} 19. Rhe1 {[%clk 0:02:01]}  Nc7 {[%clk 0:01:52]} 20. Nb4 {[%clk 0:00:56]}  h5 {[%clk 0:01:35]} 21. Nxc6+ {[%clk 0:00:39]}  bxc6 {[%clk 0:01:34]} 22. Kc2 {[%clk 0:00:32]}  Ne6 {[%clk 0:01:30]} 23. Nc4 {[%clk 0:00:23]}  Kc7 {[%clk 0:01:27]} 24. Na5 {[%clk 0:00:20]}  Rb8 {[%clk 0:01:23]} 25. Nb3 {[%clk 0:00:20]}  Rb5 {[%clk 0:01:18]} 26. Re4 {[%clk 0:00:15]}  Bf6 {[%clk 0:01:16]} 27. Nd4 {[%clk 0:00:11]}  Nxd4+ {[%clk 0:01:14]} 28. cxd4 {[%clk 0:00:12]}  c5 {[%clk 0:00:53]} 29. dxc5 {[%clk 0:00:06]}  Rxb2+ {[%clk 0:00:52]} 30. Kc1 {[%clk 0:00:06]}  Rxa2 {[%clk 0:00:38]} 31. cxd6+ {[%clk 0:00:06]}  exd6 {[%clk 0:00:38]} 32. Rc4+ {[%clk 0:00:06]}  Kd7 {[%clk 0:00:37]} 33. Rc2 {[%clk 0:00:06]}  Ra3 {[%clk 0:00:29]} 34. f4 {[%clk 0:00:04]}  Bc3 {[%clk 0:00:20]} 35. Rxc3 {[%clk 0:00:01]}  Rxc3+ {[%clk 0:00:20]} 36. Kb2 {[%clk 0:00:02]}  Rc4 {[%clk 0:00:19]} 37. g3 {[%clk 0:00:02]}  Re4 {[%clk 0:00:19]} 38. Rd2 {[%clk 0:00:01]}  h4 {[%clk 0:00:18]} 0-1


[Site "https://www.chess.com"]

[Event "Titled Tuesday Blitz June 28 Late 2022"]
[White "Maghsoodloo, Parham"]
[Black "Preotu, Razvan"]
[WhiteFideId "12539929"]
[BlackFideId "2613280"]
[WhiteElo "2607"]
[BlackElo "2407"]
[Result "1-0"]
[Round "03"]
[TimeControl "180+1"]
[Date "2022.06.28"]
[WhiteClock "0:00:36"]
[BlackClock "0:00:03"]

1. d4 {[%clk 0:03:00]}  Nf6 {[%clk 0:02:59]} 2. c4 {[%clk 0:03:01]}  g6 {[%clk 0:03:00]} 3. Nc3 {[%clk 0:03:02]}  d5 {[%clk 0:03:00]} 4. Nf3 {[%clk 0:03:01]}  Bg7 {[%clk 0:03:00]} 5. Bf4 {[%clk 0:03:01]}  O-O {[%clk 0:02:54]} 6. e3 {[%clk 0:03:00]}  c5 {[%clk 0:02:52]} 7. dxc5 {[%clk 0:02:58]}  Qa5 {[%clk 0:02:10]} 8. Qd2 {[%clk 0:02:19]}  dxc4 {[%clk 0:01:49]} 9. Bxc4 {[%clk 0:02:18]}  Qxc5 {[%clk 0:01:47]} 10. Bb3 {[%clk 0:02:18]}  Nc6 {[%clk 0:01:45]} 11. Rd1 {[%clk 0:02:15]}  Bg4 {[%clk 0:01:42]} 12. h3 {[%clk 0:02:08]}  Bxf3 {[%clk 0:01:41]} 13. gxf3 {[%clk 0:02:08]}  Rfd8 {[%clk 0:01:39]} 14. Qe2 {[%clk 0:02:08]}  Rxd1+ {[%clk 0:01:33]} 15. Nxd1 {[%clk 0:02:06]}  Nd5 {[%clk 0:01:29]} 16. Bg3 {[%clk 0:02:04]}  Rd8 {[%clk 0:01:15]} 17. O-O {[%clk 0:02:03]}  Na5 {[%clk 0:01:01]} 18. Bxd5 {[%clk 0:01:47]}  Qxd5 {[%clk 0:00:48]} 19. Nc3 {[%clk 0:01:40]}  Qc4 {[%clk 0:00:47]} 20. Qc2 {[%clk 0:01:39]}  b5 {[%clk 0:00:44]} 21. Rc1 {[%clk 0:01:37]}  b4 {[%clk 0:00:40]} 22. Ne4 {[%clk 0:01:37]}  Qxa2 {[%clk 0:00:20]} 23. Qc7 {[%clk 0:01:37]}  Rf8 {[%clk 0:00:21]} 24. Qxe7 {[%clk 0:01:32]}  Qxb2 {[%clk 0:00:21]} 25. Rc7 {[%clk 0:01:32]}  b3 {[%clk 0:00:18]} 26. Kg2 {[%clk 0:01:24]}  Qa1 {[%clk 0:00:11]} 27. Bd6 {[%clk 0:01:11]}  b2 {[%clk 0:00:08]} 28. Nf6+ {[%clk 0:00:52]}  Kh8 {[%clk 0:00:05]} 29. Be5 {[%clk 0:00:44]}  b1=Q {[%clk 0:00:04]} 30. Bxa1 {[%clk 0:00:44]}  Qxa1 {[%clk 0:00:05]} 31. Nd7 {[%clk 0:00:45]}  Rg8 {[%clk 0:00:04]} 32. Qxf7 {[%clk 0:00:45]}  Qb2 {[%clk 0:00:03]} 33. Qd5 {[%clk 0:00:36]} 1-0


[Site "https://www.chess.com"]

[Event "Titled Tuesday Blitz June 28 Late 2022"]
[White "Maksimovic, Bojan"]
[Black "Cappelletto, Joshuaede"]
[WhiteFideId "14408120"]
[BlackFideId "2824383"]
[WhiteElo "2453"]
[BlackElo "1761"]
[Result "1-0"]
[Round "03"]
[TimeControl "180+1"]
[Date "2022.06.28"]
[WhiteClock "0:00:19"]
[BlackClock "0:00:17"]

1. Nf3 {[%clk 0:03:00]}  c5 {[%clk 0:02:59]} 2. g3 {[%clk 0:03:00]}  Nc6 {[%clk 0:02:58]} 3. Bg2 {[%clk 0:03:00]}  g6 {[%clk 0:02:59]} 4. O-O {[%clk 0:03:00]}  Bg7 {[%clk 0:02:58]} 5. c4 {[%clk 0:03:01]}  e5 {[%clk 0:02:58]} 6. Nc3 {[%clk 0:02:53]}  d6 {[%clk 0:02:58]} 7. d3 {[%clk 0:02:46]}  Nge7 {[%clk 0:02:57]} 8. Ne1 {[%clk 0:02:46]}  Be6 {[%clk 0:02:53]} 9. Nc2 {[%clk 0:02:46]}  d5 {[%clk 0:02:54]} 10. cxd5 {[%clk 0:02:46]}  Nxd5 {[%clk 0:02:55]} 11. Ne3 {[%clk 0:02:46]}  Nde7 {[%clk 0:02:55]} 12. a3 {[%clk 0:02:44]}  O-O {[%clk 0:02:54]} 13. Rb1 {[%clk 0:02:44]}  a5 {[%clk 0:02:54]} 14. Nc4 {[%clk 0:02:41]}  Rb8 {[%clk 0:02:47]} 15. a4 {[%clk 0:02:40]}  Qd7 {[%clk 0:02:22]} 16. Nb6 {[%clk 0:02:27]}  Qd8 {[%clk 0:02:19]} 17. Nc4 {[%clk 0:02:27]}  b6 {[%clk 0:02:18]} 18. Nb5 {[%clk 0:02:23]}  Qd7 {[%clk 0:02:14]} 19. b3 {[%clk 0:02:07]}  Rfd8 {[%clk 0:02:07]} 20. Bb2 {[%clk 0:02:06]}  Nd4 {[%clk 0:02:07]} 21. Bxd4 {[%clk 0:01:59]}  exd4 {[%clk 0:02:08]} 22. Qd2 {[%clk 0:01:54]}  Nd5 {[%clk 0:02:02]} 23. Rbe1 {[%clk 0:01:44]}  Re8 {[%clk 0:01:48]} 24. e4 {[%clk 0:01:01]}  dxe3 {[%clk 0:01:36]} 25. fxe3 {[%clk 0:01:02]}  Nb4 {[%clk 0:01:34]} 26. Rd1 {[%clk 0:00:59]}  Rbd8 {[%clk 0:01:17]} 27. d4 {[%clk 0:00:36]}  Bxc4 {[%clk 0:00:46]} 28. bxc4 {[%clk 0:00:35]}  Bh6 {[%clk 0:00:47]} 29. Rfe1 {[%clk 0:00:26]}  cxd4 {[%clk 0:00:38]} 30. Qxd4 {[%clk 0:00:24]}  Qxd4 {[%clk 0:00:38]} 31. exd4 {[%clk 0:00:22]}  Rxe1+ {[%clk 0:00:34]} 32. Rxe1 {[%clk 0:00:22]}  Nc2 {[%clk 0:00:35]} 33. Re7 {[%clk 0:00:19]}  Ne3 {[%clk 0:00:19]} 34. c5 {[%clk 0:00:18]}  bxc5 {[%clk 0:00:18]} 35. dxc5 {[%clk 0:00:19]}  Rd1+ {[%clk 0:00:18]} 36. Kf2 {[%clk 0:00:19]}  Rd2+ {[%clk 0:00:18]} 37. Kf3 {[%clk 0:00:19]}  Nxg2 {[%clk 0:00:18]} 38. c6 {[%clk 0:00:19]}  Rc2 {[%clk 0:00:17]} 39. c7 {[%clk 0:00:19]}  Ne1+ {[%clk 0:00:18]} 40. Rxe1 {[%clk 0:00:19]}  Kg7 {[%clk 0:00:17]} 41. Re8 {[%clk 0:00:19]} 1-0


[Site "https://www.chess.com"]

[Event "Titled Tuesday Blitz June 28 Late 2022"]
[White "Manukyan, Artyom"]
[Black "Sailer, Mike"]
[WhiteFideId "13305786"]
[BlackFideId "2012901"]
[WhiteElo "2034"]
[BlackElo "2109"]
[Result "1-0"]
[Round "03"]
[TimeControl "180+1"]
[Date "2022.06.29"]
[WhiteClock "0:01:47"]
[BlackClock "0:00:01"]

1. e4 {[%clk 0:03:00]}  d5 {[%clk 0:02:59]} 2. exd5 {[%clk 0:03:01]}  Qxd5 {[%clk 0:02:58]} 3. Nf3 {[%clk 0:03:01]}  Bg4 {[%clk 0:02:57]} 4. Be2 {[%clk 0:03:01]}  Nc6 {[%clk 0:02:56]} 5. h3 {[%clk 0:02:52]}  Bh5 {[%clk 0:02:49]} 6. d4 {[%clk 0:02:50]}  O-O-O {[%clk 0:02:48]} 7. c4 {[%clk 0:02:46]}  Qd7 {[%clk 0:02:43]} 8. d5 {[%clk 0:02:44]}  Bxf3 {[%clk 0:02:42]} 9. Bxf3 {[%clk 0:02:45]}  Ne5 {[%clk 0:02:41]} 10. O-O {[%clk 0:02:46]}  Nxf3+ {[%clk 0:02:40]} 11. Qxf3 {[%clk 0:02:47]}  Nf6 {[%clk 0:02:39]} 12. Nc3 {[%clk 0:02:47]}  e6 {[%clk 0:02:35]} 13. Qe3 {[%clk 0:02:47]}  b6 {[%clk 0:02:20]} 14. Rd1 {[%clk 0:02:42]}  Bc5 {[%clk 0:02:18]} 15. Qe2 {[%clk 0:02:42]}  exd5 {[%clk 0:02:18]} 16. cxd5 {[%clk 0:02:43]}  Rhe8 {[%clk 0:02:17]} 17. Qa6+ {[%clk 0:02:43]}  Kb8 {[%clk 0:02:17]} 18. Nb5 {[%clk 0:02:42]}  Bxf2+ {[%clk 0:01:48]} 19. Kh1 {[%clk 0:02:37]}  c6 {[%clk 0:01:18]} 20. Bf4+ {[%clk 0:02:14]}  Ka8 {[%clk 0:01:15]} 21. Nc7+ {[%clk 0:02:13]}  Qxc7 {[%clk 0:01:10]} 22. Bxc7 {[%clk 0:02:14]}  Rxd5 {[%clk 0:01:04]} 23. Rxd5 {[%clk 0:02:07]}  Nxd5 {[%clk 0:01:04]} 24. Bd6 {[%clk 0:02:05]}  f5 {[%clk 0:00:48]} 25. Qc4 {[%clk 0:02:04]}  Kb7 {[%clk 0:00:47]} 26. Rc1 {[%clk 0:02:04]}  Rc8 {[%clk 0:00:41]} 27. b4 {[%clk 0:01:59]}  b5 {[%clk 0:00:35]} 28. Qd3 {[%clk 0:01:58]}  Be3 {[%clk 0:00:25]} 29. Re1 {[%clk 0:01:55]}  f4 {[%clk 0:00:26]} 30. Qxh7 {[%clk 0:01:54]}  Bd4 {[%clk 0:00:13]} 31. Bc5 {[%clk 0:01:52]}  Bf6 {[%clk 0:00:10]} 32. Qf5 {[%clk 0:01:52]}  Rd8 {[%clk 0:00:06]} 33. Rd1 {[%clk 0:01:49]}  Re8 {[%clk 0:00:05]} 34. Qd7+ {[%clk 0:01:47]}  Nc7 {[%clk 0:00:03]} 35. Bd6 {[%clk 0:01:48]}  Rc8 {[%clk 0:00:01]} 36. a4 {[%clk 0:01:46]}  bxa4 {[%clk 0:00:01]} 37. Rc1 {[%clk 0:01:46]}  a3 {[%clk 0:00:01]} 38. Qxc6+ {[%clk 0:01:47]} 1-0


[Site "https://www.chess.com"]

[Event "Titled Tuesday Blitz June 28 Late 2022"]
[White "Marin Ramirez, Gerardo"]
[Black "Jorquera, Marcelo"]
[WhiteFideId "3901068"]
[BlackFideId "3401197"]
[WhiteElo "1920"]
[BlackElo "2136"]
[Result "0-1"]
[Round "03"]
[TimeControl "180+1"]
[Date "2022.06.29"]
[WhiteClock "0:00:06"]
[BlackClock "0:01:12"]

1. d4 {[%clk 0:02:07]}  Nf6 {[%clk 0:02:59]} 2. Nf3 {[%clk 0:02:08]}  g6 {[%clk 0:02:58]} 3. c4 {[%clk 0:02:08]}  Bg7 {[%clk 0:02:58]} 4. Nc3 {[%clk 0:02:09]}  O-O {[%clk 0:02:59]} 5. g3 {[%clk 0:02:09]}  d6 {[%clk 0:02:59]} 6. Bg2 {[%clk 0:02:10]}  Nc6 {[%clk 0:02:59]} 7. O-O {[%clk 0:02:11]}  e5 {[%clk 0:02:59]} 8. dxe5 {[%clk 0:02:04]}  Nxe5 {[%clk 0:02:59]} 9. Nxe5 {[%clk 0:02:04]}  dxe5 {[%clk 0:03:00]} 10. Qb3 {[%clk 0:02:01]}  c6 {[%clk 0:02:51]} 11. Rd1 {[%clk 0:01:57]}  Qe7 {[%clk 0:02:46]} 12. a4 {[%clk 0:01:55]}  a5 {[%clk 0:02:39]} 13. Qc2 {[%clk 0:01:43]}  Bf5 {[%clk 0:02:30]} 14. e4 {[%clk 0:01:39]}  Be6 {[%clk 0:02:26]} 15. b3 {[%clk 0:01:36]}  Rfd8 {[%clk 0:02:23]} 16. Ba3 {[%clk 0:01:34]}  Qc7 {[%clk 0:02:13]} 17. Bc5 {[%clk 0:01:20]}  Bf8 {[%clk 0:02:09]} 18. Bxf8 {[%clk 0:01:16]}  Kxf8 {[%clk 0:02:08]} 19. Qc1 {[%clk 0:00:40]}  Kg7 {[%clk 0:02:03]} 20. Qe3 {[%clk 0:00:41]}  Ng4 {[%clk 0:01:55]} 21. Qc5 {[%clk 0:00:30]}  b6 {[%clk 0:01:47]} 22. Qa3 {[%clk 0:00:27]}  Nf6 {[%clk 0:01:43]} 23. h3 {[%clk 0:00:20]}  Nd7 {[%clk 0:01:41]} 24. Bf1 {[%clk 0:00:08]}  Nc5 {[%clk 0:01:39]} 25. b4 {[%clk 0:00:08]}  axb4 {[%clk 0:01:35]} 26. Qxb4 {[%clk 0:00:09]}  Rd4 {[%clk 0:01:26]} 27. a5 {[%clk 0:00:06]}  Rb8 {[%clk 0:01:12]} 0-1


[Site "https://www.chess.com"]